bitfinex/quotes_ETHUSD_20250505
["timestamp","ask_amount","ask_price","bid_price","bid_amount"]
[1746479265510,5.53478217,1816.4,1816.2,4.619]
[1746479267098,6.25850062,1816.5,1816.2,10.12498776]
[1746479267314,0.78248496,1816.5,1816.2,10.12498776]
[1746479267605,5.53434899,1816.5,1816.2,10.12498776]
[1746479267778,5.53434899,1816.5,1816.2,4.619]
[1746479268410,5.53434899,1816.5,1816.2,10.12482467]
[1746479268929,5.53434899,1816.5,1816.2,4.619]
[1746479269076,5.50549834,1816.4,1816.2,4.619]
[1746479269579,5.53472437,1816.4,1816.2,4.619]
[1746479269911,6.6387091,1816.4,1816.2,4.619]
[1746479270091,6.28529839,1816.3,1816.2,4.619]
[1746479270289,9.79952753,1816.4,1816.2,5.3819]
[1746479270499,6.6387091,1816.4,1816.2,5.3819]
[1746479270806,0.66387091,1816.3,1816.2,5.3819]
[1746479271019,6.6387091,1816.4,1816.2,5.3819]
[1746479272186,6.6387091,1816.4,1816.2,4.619]
[1746479272917,5.50569839,1816.3,1816.2,4.619]
[1746479274030,9.79952753,1816.4,1816.2,4.619]
[1746479274241,0.02922603,1816.3,1816.2,4.619]
[1746479274610,5.53492442,1816.3,1816.2,4.619]
[1746479276425,7.06836962,1816.3,1816.2,4.619]
[1746479276625,1.56267123,1816.3,1816.2,4.619]
[1746479276826,0.02922603,1816.3,1816.2,4.619]
[1746479276993,5.53492442,1816.3,1816.2,4.619]
[1746479277836,9.54826888,1816.3,1816.2,4.619]
[1746479278029,12.54826888,1816.3,1816.2,4.619]
[1746479278227,12.51904285,1816.3,1816.2,4.619]
[1746479278416,14.43189544,1816.3,1816.2,4.619]
[1746479280226,3.0,1816.2,1815.9,4.619]
[1746479280409,5.53553074,1816.1,1815.9,4.619]
[1746479280731,5.50630471,1816.1,1815.9,4.619]
[1746479281325,5.53553074,1816.1,1815.9,4.619]
[1746479282031,5.50630471,1816.1,1815.9,4.619]
[1746479282343,5.53553074,1816.1,1815.9,4.619]
[1746479282818,5.50660792,1816.0,1815.9,4.619]
[1746479283426,6.63712521,1816.0,1815.9,4.619]
[1746479284831,1.91285259,1816.3,1815.9,5.4028]
[1746479285035,5.53501577,1816.3,1815.9,5.4028]
[1746479285248,11.04097213,1816.3,1815.9,10.90961556]
[1746479285537,5.50600519,1816.2,1815.9,10.90961556]
[1746479286503,5.50578974,1816.3,1815.9,10.90961556]
[1746479286704,5.53501577,1816.3,1815.9,10.90961556]
[1746479286954,6.19891582,1816.3,1815.9,10.90961556]
[1746479287237,6.19891582,1816.3,1815.9,5.4028]
[1746479287602,5.50613346,1816.2,1815.9,5.4028]
[1746479288044,5.53535949,1816.2,1815.9,5.4028]
[1746479288934,5.53535949,1816.2,1815.9,10.9096903]
[1746479289537,5.53535949,1816.2,1815.9,5.4028]
[1746479291735,5.50642875,1816.1,1815.9,5.4028]
[1746479291942,5.50642875,1816.1,1815.9,4.619]
[1746479292533,11.01239638,1816.2,1815.9,4.619]
[1746479292722,5.50660792,1816.0,1815.9,4.619]
[1746479292928,5.50649887,1816.1,1815.9,4.619]
[1746479293130,5.5357249,1816.1,1815.9,4.619]
[1746479294907,5.50660792,1816.0,1815.9,4.619]
[1746479296126,5.53583395,1816.0,1815.9,4.619]
[1746479296408,6.71595723,1816.0,1815.9,4.619]
[1746479296729,6.6867312,1816.0,1815.9,4.619]
[1746479297330,6.71595723,1816.0,1815.9,4.619]
[1746479297731,6.6867312,1816.0,1815.9,4.619]
[1746479298429,6.71595723,1816.0,1815.9,4.619]
[1746479298631,6.6867312,1816.0,1815.9,4.619]
[1746479299013,6.71595723,1816.0,1815.9,4.619]
[1746479304215,5.50660792,1816.0,1815.9,4.619]
[1746479304421,5.53583395,1816.0,1815.9,4.619]
[1746479311162,5.50660792,1816.0,1815.9,4.619]
[1746479311458,5.53583395,1816.0,1815.9,4.619]
[1746479311664,5.50660792,1816.0,1815.9,4.619]
[1746479312657,5.53583395,1816.0,1815.9,4.619]
[1746479313173,6.64006723,1816.0,1815.9,4.619]
[1746479313567,5.50717838,1815.9,1815.7,5.4525]
[1746479313773,11.01435676,1815.9,1815.7,5.4525]
[1746479313962,5.50721445,1815.8,1815.7,5.4525]
[1746479314164,5.53644048,1815.8,1815.7,4.62]
[1746479316647,5.50721445,1815.8,1815.7,4.62]
[1746479317801,5.53644048,1815.8,1815.7,4.62]
[1746479318805,0.02922603,1815.8,1815.7,4.62]
[1746479319092,11.04286093,1816.0,1815.7,6.40936166]
[1746479319294,11.0136349,1816.0,1815.7,5.3966]
[1746479319508,11.01365992,1816.0,1815.7,5.3966]
[1746479320287,5.50696779,1815.9,1815.7,5.3966]
[1746479320665,5.53619382,1815.9,1815.7,5.3966]
[1746479321291,5.50696779,1815.9,1815.7,5.3966]
[1746479323687,5.53619382,1815.9,1815.7,5.3966]
[1746479323890,5.50721445,1815.8,1815.7,4.62]
[1746479324263,5.53644048,1815.8,1815.7,4.62]
[1746479326395,5.50674354,1816.0,1815.7,4.62]
[1746479326596,0.02922603,1815.9,1815.8,0.7787]
[1746479326892,5.50663074,1816.0,1815.8,0.7787]
[1746479327273,11.04274535,1816.0,1815.8,0.7787]
[1746479327474,11.01350512,1816.0,1815.8,0.7787]
[1746479327793,5.50663074,1816.0,1815.8,0.7787]
[1746479329498,5.50641521,1816.1,1815.8,0.7787]
[1746479329794,5.53564124,1816.1,1815.8,0.7787]
[1746479330193,11.04222851,1816.1,1815.8,0.7787]
[1746479330420,5.50670611,1816.0,1815.8,0.7787]
[1746479331498,5.50663349,1816.0,1815.8,0.7787]
[1746479331799,5.53585952,1816.0,1815.8,0.7787]
[1746479333200,0.02922603,1816.0,1815.8,0.7787]
[1746479335679,5.53564124,1816.1,1815.8,0.7787]
[1746479335883,11.04222068,1816.1,1815.8,0.7787]
[1746479336083,11.01299465,1816.1,1815.8,0.7787]
[1746479336402,5.50661952,1816.0,1815.8,0.7787]
[1746479336598,5.50641521,1816.1,1815.8,0.7787]
[1746479336799,5.53564124,1816.1,1815.8,6.28591221]
[1746479337009,5.53564124,1816.1,1815.8,0.7787]
[1746479337788,11.04221027,1816.1,1815.8,0.7787]
[1746479337988,6.99261624,1816.1,1815.8,0.7787]
[1746479338190,7.02184227,1816.1,1815.8,0.7787]
[1746479339022,16.4097202,1816.3,1816.0,5.50655513]
[1746479339185,16.4097202,1816.3,1815.9,5.50673296]
[1746479339186,15.74582015,1816.3,1815.9,5.50673296]
[1746479339519,21.25174808,1816.3,1815.9,5.50673296]
[1746479339886,15.74582015,1816.3,1815.9,5.50673296]
[1746479340087,21.25175053,1816.3,1815.9,5.50673296]
[1746479340286,15.74582015,1816.3,1815.9,6.68596149]
[1746479340483,10.24,1816.3,1816.0,6.29644531]
[1746479340715,10.24,1816.3,1816.0,6.29641264]
[1746479340923,9.30407508,1816.5,1816.1,5.50619841]
[1746479341104,0.02922603,1816.4,1816.1,10.12519841]
[1746479341499,0.02922603,1816.4,1816.1,15.6313442]
[1746479341704,0.02922603,1816.4,1816.1,10.12514579]
[1746479341998,0.02922603,1816.4,1816.1,15.63129173]
[1746479342202,0.02922603,1816.4,1816.1,11.76727496]
[1746479342718,5.5346989,1816.4,1816.1,11.76727496]
[1746479343821,6.30407508,1816.5,1816.1,11.76727496]
[1746479344118,6.33330111,1816.5,1816.1,11.76727496]
[1746479344322,5.5054087,1816.4,1816.1,11.76727496]
[1746479344520,6.30407508,1816.5,1816.1,11.76727496]
[1746479344721,11.83866628,1816.5,1816.1,11.76727496]
[1746479344921,11.80944025,1816.5,1816.1,11.76727496]
[1746479345443,5.53465488,1816.4,1816.1,6.26112917]
[1746479346225,5.53465488,1816.4,1816.1,11.76743312]
[1746479347889,5.53465488,1816.4,1816.1,6.26112917]
[1746479348123,5.50527508,1816.5,1816.3,0.7631]
[1746479348302,0.02922603,1816.5,1816.3,0.7631]
[1746479348501,5.5343342,1816.5,1816.3,0.7631]
[1746479348899,5.50470215,1816.7,1816.3,6.26863893]
[1746479349237,5.53392818,1816.7,1816.4,0.62686389]
[1746479350652,11.03869237,1816.7,1816.4,0.62686389]
[1746479350849,11.00946634,1816.7,1816.4,0.62686389]
[1746479351440,5.50470215,1816.7,1816.4,0.62686389]
[1746479351649,5.50494087,1816.6,1816.4,0.62686389]
[1746479352337,5.50494087,1816.6,1816.3,6.26857723]
[1746479352531,5.50494087,1816.6,1816.3,0.7631]
[1746479352747,5.50494087,1816.6,1816.3,6.26878168]
[1746479353046,5.50470433,1816.7,1816.3,6.26878168]
[1746479353218,11.03867247,1816.7,1816.3,6.26878168]
[1746479353418,5.50481178,1816.6,1816.3,6.26878168]
[1746479353619,5.50481178,1816.6,1816.3,7.50884928]
[1746479354315,5.50481178,1816.6,1816.3,2.0031676]
[1746479354316,5.50521719,1816.5,1816.3,2.0031676]
[1746479354647,5.50481178,1816.6,1816.3,0.7631]
[1746479356147,5.50481178,1816.6,1816.3,6.26877436]
[1746479358730,5.50466765,1816.7,1816.4,0.7563]
[1746479359250,5.50509221,1816.5,1816.2,0.7563]
[1746479359425,5.53484857,1816.4,1816.2,0.7563]
[1746479359625,5.50562254,1816.4,1816.2,0.7563]
[1746479362860,5.50520418,1816.5,1816.2,0.7563]
[1746479363028,5.50492619,1816.6,1816.2,7.35031612]
[1746479363235,5.53415222,1816.6,1816.3,5.50561355]
[1746479364051,5.50461065,1816.7,1816.4,6.29647357]
[1746479364351,18.74397102,1816.9,1816.6,0.7911]
[1746479364527,10.24,1816.9,1816.6,6.29579797]
[1746479364733,10.24,1816.9,1816.6,0.7911]
[1746479364734,15.74400356,1816.9,1816.6,0.7911]
[1746479365537,21.24812027,1816.9,1816.6,0.7911]
[1746479365748,5.50438939,1816.8,1816.6,0.7911]
[1746479366556,15.74400356,1816.9,1816.6,0.7911]
[1746479366857,5.50421219,1816.8,1816.6,1.88231845]
[1746479367158,5.50421219,1816.8,1816.6,0.7911]
[1746479367651,15.74400356,1816.9,1816.6,0.7911]
[1746479368038,21.24815621,1816.9,1816.6,0.7911]
[1746479368236,15.74400356,1816.9,1816.6,0.7911]
[1746479368536,5.50400356,1816.9,1816.6,0.7911]
[1746479368857,5.50431251,1816.8,1816.6,1.88229524]
[1746479369234,5.50400356,1816.9,1816.6,1.88229524]
[1746479369936,5.53322959,1816.9,1816.6,1.88229524]
[1746479370546,5.50400356,1816.9,1816.6,1.88229524]
[1746479370754,5.50400356,1816.9,1816.6,7.38697544]
[1746479370926,5.50372401,1817.0,1816.7,0.73869754]
[1746479371322,0.02922603,1817.0,1816.8,0.8167]
[1746479371526,5.53250744,1817.1,1816.8,6.32072085]
[1746479371743,5.53250744,1817.1,1816.8,0.8167]
[1746479372539,5.50361173,1817.0,1816.8,0.8167]
[1746479372740,5.50361173,1817.0,1816.8,1.52266746]
[1746479374364,5.53283776,1817.0,1816.8,0.8167]
[1746479375662,5.50361173,1817.0,1816.8,0.8167]
[1746479376043,5.53283776,1817.0,1816.8,0.8167]
[1746479376665,11.03669295,1817.0,1816.8,0.8167]
[1746479376843,5.50388023,1816.9,1816.8,0.8167]
[1746479377654,5.53283776,1817.0,1816.8,0.8167]
[1746479379059,5.50345308,1817.1,1816.8,0.8167]
[1746479379263,5.53267911,1817.1,1816.8,1.44881532]
[1746479379438,5.53267911,1817.1,1816.8,6.9528686]
[1746479379858,5.50329028,1817.1,1816.8,6.9528686]
[1746479380034,5.50366198,1817.0,1816.8,0.8167]
[1746479380234,5.53251631,1817.1,1816.8,0.8167]
[1746479381347,11.00684986,1817.1,1816.8,0.8167]
[1746479381639,5.53251631,1817.1,1816.8,6.32085746]
[1746479381839,5.53251631,1817.1,1816.8,0.8167]
[1746479382039,5.50357977,1817.0,1816.8,0.8167]
[1746479382441,5.5328058,1817.0,1816.8,0.8167]
[1746479382740,0.02922603,1817.0,1816.8,0.8167]
[1746479383174,0.02922603,1817.0,1816.9,4.615]
[1746479384149,5.53251631,1817.1,1816.9,4.615]
[1746479384460,11.03606,1817.1,1816.9,4.615]
[1746479384642,11.00683397,1817.1,1816.9,4.615]
[1746479385177,5.50329028,1817.1,1816.9,4.615]
[1746479385350,11.03604146,1817.1,1816.9,4.615]
[1746479385539,11.00681543,1817.1,1816.9,4.615]
[1746479385741,0.02922603,1817.0,1816.9,4.615]
[1746479388783,5.53280335,1817.0,1816.9,4.615]
[1746479388976,6.36510335,1817.0,1816.9,4.615]
[1746479389173,5.53280335,1817.0,1816.9,4.615]
[1746479389940,0.02922603,1817.0,1816.9,4.615]
[1746479394975,5.53280335,1817.0,1816.9,4.615]
[1746479400176,6.63641271,1817.0,1816.9,4.615]
[1746479400381,12.14021852,1817.0,1816.8,4.613]
[1746479400585,5.50357732,1817.0,1816.8,4.613]
[1746479400784,5.53280335,1817.0,1816.8,4.613]
[1746479401083,5.50357732,1817.0,1816.8,4.613]
[1746479401752,5.50388023,1816.9,1816.8,4.613]
[1746479402383,11.00737629,1817.0,1816.8,4.613]
[1746479402574,5.50357732,1817.0,1816.8,4.613]
[1746479402761,5.53280335,1817.0,1816.8,4.613]
[1746479402951,11.03662484,1817.0,1816.8,4.613]
[1746479403149,11.00738126,1817.0,1816.8,4.613]
[1746479403362,5.50388023,1816.9,1816.8,4.613]
[1746479403685,5.53280335,1817.0,1816.8,4.613]
[1746479409103,5.50388023,1816.9,1816.8,4.613]
[1746479410686,5.50357732,1817.0,1816.8,4.613]
[1746479413696,5.50388023,1816.9,1816.8,4.613]
[1746479416193,5.50357732,1817.0,1816.8,4.613]
[1746479417062,5.53280335,1817.0,1816.8,4.613]
[1746479417594,5.50357732,1817.0,1816.8,4.613]
[1746479418595,6.32938023,1816.9,1816.8,4.613]
[1746479418795,5.50388023,1816.9,1816.8,4.613]
[1746479422594,11.83290423,1817.0,1816.8,4.613]
[1746479422794,5.50388023,1816.9,1816.8,4.613]
[1746479424875,7.74012841,1817.0,1816.8,4.613]
[1746479425071,7.76935444,1817.0,1816.8,4.613]
[1746479425283,13.27317536,1817.0,1816.8,4.613]
[1746479425483,7.74012841,1817.0,1816.8,4.613]
[1746479425684,7.76935444,1817.0,1816.8,4.613]
[1746479426909,5.50323329,1817.2,1816.8,5.3685]
[1746479427074,5.50342969,1817.1,1816.8,5.3685]
[1746479427274,5.50347776,1817.1,1816.8,5.3685]
[1746479428596,5.50347776,1817.1,1816.8,10.8726308]
[1746479428905,5.50336545,1817.1,1816.8,10.8726308]
[1746479429909,5.50300954,1817.2,1816.8,10.87251436]
[1746479430107,5.50300954,1817.2,1816.8,16.3765149]
[1746479430311,5.53223557,1817.2,1816.8,16.3765149]
[1746479430607,5.53223557,1817.2,1816.8,10.87246363]
[1746479430817,11.03545614,1817.2,1816.8,10.87246363]
[1746479431112,5.50300954,1817.2,1816.8,10.87246363]
[1746479431409,5.53223557,1817.2,1816.8,10.87246363]
[1746479431571,5.53223557,1817.2,1816.8,16.37644523]
[1746479431772,5.53223557,1817.2,1816.8,10.87246363]
[1746479432071,5.53223557,1817.2,1816.8,16.37643369]
[1746479432307,5.53223557,1817.2,1816.8,10.87246363]
[1746479432510,5.53223557,1817.2,1816.8,16.37644216]
[1746479432810,5.53223557,1817.2,1816.8,16.37647847]
[1746479432998,5.53223557,1817.2,1816.8,10.87246363]
[1746479433306,11.03547044,1817.2,1816.8,10.87246363]
[1746479433481,5.50300954,1817.2,1816.9,5.50385771]
[1746479433678,5.53223557,1817.2,1816.9,5.50385771]
[1746479436216,19.5593365,1817.3,1816.9,5.50385771]
[1746479436379,25.0622521,1817.3,1816.9,5.50385771]
[1746479436809,15.7428365,1817.3,1817.0,0.7555]
[1746479437679,21.24574048,1817.3,1817.0,0.7555]
[1746479438316,15.7428365,1817.3,1817.0,0.7555]
[1746479439892,15.7428365,1817.3,1817.0,5.3655]
[1746479445619,0.02922603,1817.2,1817.0,5.3655]
[1746479445921,5.53221987,1817.2,1817.0,5.3655]
[1746479446917,0.02922603,1817.2,1817.0,5.3655]
[1746479448108,15.7428365,1817.3,1817.0,5.3655]
[1746479450027,10.24,1817.3,1817.2,5.5029716]
[1746479450323,0.8165,1817.5,1817.2,0.7754]
[1746479450324,5.50211387,1817.5,1817.2,0.7754]
[1746479450500,5.50246138,1817.4,1817.2,0.7754]
[1746479450901,5.53168741,1817.4,1817.2,0.7754]
[1746479456528,5.53168741,1817.4,1817.0,11.75074246]
[1746479456725,5.50327444,1817.1,1817.0,6.24729138]
[1746479456913,5.50310717,1817.2,1817.0,4.61]
[1746479457118,5.50327444,1817.1,1817.0,4.61]
[1746479457308,5.50310717,1817.2,1817.0,4.61]
[1746479457828,5.50257601,1817.4,1817.1,3.10920664]
[1746479458030,5.50257601,1817.4,1817.2,0.31092066]
[1746479458830,6.27428549,1817.5,1817.2,0.31092066]
[1746479459030,6.30351152,1817.5,1817.2,0.31092066]
[1746479459213,5.53141152,1817.5,1817.2,0.31092066]
[1746479459419,5.53141152,1817.5,1817.3,0.8006]
[1746479461921,11.03373332,1817.5,1817.3,0.8006]
[1746479462122,11.00450729,1817.5,1817.3,0.8006]
[1746479462432,5.50218549,1817.5,1817.3,0.8006]
[1746479462610,5.53141152,1817.5,1817.3,0.8006]
[1746479463012,5.50236601,1817.4,1817.2,0.8205]
[1746479463529,5.50218549,1817.5,1817.2,0.8205]
[1746479463731,5.53141152,1817.5,1817.2,0.8205]
[1746479463932,0.4059005,1817.6,1817.3,5.50244864]
[1746479464099,0.4059005,1817.6,1817.4,5.4265]
[1746479464305,5.90768042,1817.6,1817.4,5.4265]
[1746479464813,5.93690645,1817.6,1817.4,5.4265]
[1746479465000,0.43512653,1817.6,1817.4,5.4265]
[1746479465201,0.4059005,1817.6,1817.4,5.4265]
[1746479465834,0.4059005,1817.6,1817.4,12.02162258]
[1746479466040,0.4059005,1817.6,1817.5,6.29286327]
[1746479466407,0.4059005,1817.6,1817.5,0.7908]
[1746479466603,0.4059005,1817.6,1817.5,6.29286327]
[1746479469337,0.4059005,1817.6,1817.5,6.84286327]
[1746479469643,0.4059005,1817.6,1817.5,9.00685951]
[1746479474041,0.4059005,1817.6,1817.5,9.42561436]
[1746479474940,0.4059005,1817.6,1817.5,9.37060996]
[1746479475144,0.4059005,1817.6,1817.5,7.50479184]
[1746479475347,0.4059005,1817.6,1817.5,13.00685511]
[1746479477138,0.4059005,1817.6,1817.5,13.55685511]
[1746479480422,0.4059005,1817.6,1817.5,16.55685511]
[1746479492461,0.4059005,1817.6,1817.5,18.08185511]
[1746479492759,0.4059005,1817.6,1817.5,22.68285511]
[1746479497162,0.26010033,1817.6,1817.5,22.68285511]
[1746479499371,0.26010033,1817.6,1817.5,23.41297424]
[1746479504187,0.8136,1818.6,1818.5,5.49898964]
[1746479504483,0.8136,1818.6,1818.5,10.09898964]
[1746479504643,0.8136,1818.6,1818.5,4.6]
[1746479506285,0.8136,1818.6,1818.5,10.09903766]
[1746479507675,0.8136,1818.6,1818.5,4.6]
[1746479508585,0.8136,1818.6,1818.5,10.09903766]
[1746479509204,0.8136,1818.6,1818.5,4.6]
[1746479509407,6.31233529,1818.6,1818.5,4.6]
[1746479509569,6.25093529,1818.6,1818.5,4.6]
[1746479509752,5.49873529,1818.6,1818.3,5.49953001]
[1746479510092,0.7522,1818.5,1818.4,4.6]
[1746479510383,0.7522,1818.5,1818.4,10.09934007]
[1746479510752,0.7522,1818.5,1818.4,4.6]
[1746479511079,0.7522,1818.5,1818.0,24.24037546]
[1746479511282,5.49948136,1818.4,1818.1,10.10019631]
[1746479511582,5.49924452,1818.5,1818.2,5.49986548]
[1746479511784,0.7522,1818.4,1818.2,5.49986548]
[1746479512002,0.78142603,1818.3,1816.9,0.7963]
[1746479512150,6.25365788,1817.7,1817.5,4.6]
[1746479512350,7.77704812,1817.7,1817.5,4.6]
[1746479512549,7.74782209,1817.7,1817.5,4.6]
[1746479513169,7.77704812,1817.7,1817.5,4.6]
[1746479513376,2.24636421,1817.7,1817.5,4.6]
[1746479513694,7.74787039,1817.7,1817.5,4.6]
[1746479513874,5.50176056,1817.6,1817.5,4.6]
[1746479516992,5.50176056,1817.6,1817.5,4.6]
[1746479518908,7.62352366,1817.6,1817.5,4.6]
[1746479519064,7.65274969,1817.6,1817.5,4.6]
[1746479519263,5.50213517,1817.5,1817.1,5.503159]
[1746479519579,5.50213517,1817.5,1817.2,4.599]
[1746479519888,5.50213517,1817.5,1817.3,4.599]
[1746479520290,5.50213517,1817.5,1817.4,4.599]
[1746479523101,6.29856056,1817.6,1817.4,4.599]
[1746479523292,11.80057469,1817.6,1817.4,4.599]
[1746479523700,5.50206327,1817.5,1817.4,4.599]
[1746479524408,6.29856056,1817.6,1817.4,4.599]
[1746479524901,11.8005754,1817.6,1817.4,4.599]
[1746479525113,5.50206327,1817.5,1817.4,4.599]
[1746479525402,7.4786181,1817.6,1817.4,4.599]
[1746479525627,12.98060595,1817.6,1817.4,4.599]
[1746479526589,5.50206327,1817.5,1817.4,4.599]
[1746479528717,7.4786181,1817.6,1817.4,4.599]
[1746479530216,7.50784413,1817.6,1817.4,4.599]
[1746479530911,5.50206327,1817.5,1817.4,4.599]
[1746479532324,7.4786181,1817.6,1817.4,4.599]
[1746479532883,13.00982793,1817.6,1817.4,4.599]
[1746479533086,12.9806019,1817.6,1817.4,4.599]
[1746479533284,7.4786181,1817.6,1817.4,4.599]
[1746479533714,13.00984633,1817.6,1817.4,4.599]
[1746479533893,12.9806203,1817.6,1817.4,4.599]
[1746479534193,5.50206327,1817.5,1817.4,4.599]
[1746479536714,7.4786181,1817.6,1817.4,4.599]
[1746479536949,0.7968,1817.6,1817.4,4.599]
[1746479541446,0.7968,1817.6,1817.5,4.6]
[1746479545357,5.50160265,1817.7,1817.5,4.6]
[1746479546356,5.50160265,1817.7,1817.6,4.6]
[1746479548755,6.25224471,1817.8,1817.6,4.6]
[1746479549159,7.4275645,1817.8,1817.6,4.6]
[1746479549662,5.50145788,1817.7,1817.6,4.6]
[1746479550245,7.4275645,1817.8,1817.6,4.6]
[1746479551061,5.50145788,1817.7,1817.6,4.6]
[1746479551634,11.75366342,1817.8,1817.6,4.6]
[1746479553770,6.25224471,1817.8,1817.6,4.6]
[1746479554073,6.28147074,1817.8,1817.6,4.6]
[1746479554251,11.78286717,1817.8,1817.6,4.6]
[1746479554450,11.75364114,1817.8,1817.6,4.6]
[1746479554951,5.50145788,1817.7,1817.6,4.6]
[1746479555350,6.70605417,1817.7,1817.6,4.6]
[1746479557469,5.53068391,1817.7,1817.6,4.6]
[1746479558686,9.43894694,1817.8,1817.6,4.6]
[1746479558865,14.9696183,1817.8,1817.6,4.6]
[1746479559051,5.50145788,1817.7,1817.6,4.6]
[1746479561183,11.75364718,1817.8,1817.6,4.6]
[1746479561675,11.7536648,1817.8,1817.6,4.6]
[1746479561881,6.25224471,1817.8,1817.6,4.6]
[1746479562091,5.50098917,1817.9,1817.6,4.6]
[1746479562295,16.55428639,1818.0,1817.7,5.50134283]
[1746479562579,5.50068639,1818.0,1817.7,5.50134283]
[1746479562787,11.81453102,1818.1,1817.7,5.50134283]
[1746479562957,13.31465435,1818.1,1817.7,5.50134283]
[1746479563158,7.81416332,1818.1,1817.7,5.50134283]
[1746479563677,13.31469309,1818.1,1817.7,5.50134283]
[1746479564079,4.00030223,1818.2,1817.6,5.8331]
[1746479564248,11.84324152,1818.2,1817.8,5.50105016]
[1746479564447,5.50026453,1818.1,1817.8,5.50105016]
[1746479564658,6.31377124,1818.2,1817.9,0.7731]
[1746479564849,6.34299727,1818.2,1817.9,0.7731]
[1746479566683,6.34299727,1818.2,1818.0,4.598]
[1746479567400,11.84316861,1818.2,1818.0,4.598]
[1746479567560,11.81394258,1818.2,1818.0,4.598]
[1746479569295,5.50024751,1818.1,1818.0,4.598]
[1746479571482,5.52947354,1818.1,1818.0,4.598]
[1746479572953,1.53222073,1818.1,1817.9,4.597]
[1746479573285,5.50110299,1817.9,1817.5,6.27764629]
[1746479573486,5.50128173,1817.8,1817.6,4.597]
[1746479575554,5.50098313,1817.9,1817.6,4.597]
[1746479576075,5.50118866,1817.8,1817.6,4.597]
[1746479576275,5.50118866,1817.8,1817.6,5.6844624]
[1746479576656,5.50118866,1817.8,1817.6,4.597]
[1746479579596,5.50104227,1817.9,1817.6,4.597]
[1746479580185,5.50117691,1817.8,1817.6,4.597]
[1746479581097,5.50104227,1817.9,1817.6,4.597]
[1746479581287,11.00219419,1817.9,1817.6,4.597]
[1746479581698,11.00219419,1817.9,1817.6,5.68445462]
[1746479582104,5.50104227,1817.9,1817.6,5.68445462]
[1746479583202,5.50104227,1817.9,1817.6,11.18620195]
[1746479583404,5.50104227,1817.9,1817.6,5.68445462]
[1746479583591,11.00211993,1817.9,1817.6,5.68445462]
[1746479583778,5.50145788,1817.7,1817.6,5.68445462]
[1746479583972,5.50145788,1817.7,1817.6,4.597]
[1746479584398,5.50224879,1817.5,1817.3,0.7535]
[1746479584705,5.50224879,1817.5,1817.4,4.595]
[1746479585076,11.00395058,1817.6,1817.4,4.595]
[1746479585275,5.50189645,1817.6,1817.4,4.595]
[1746479585497,5.50164231,1817.7,1817.4,4.595]
[1746479585695,5.50198381,1817.6,1817.4,4.595]
[1746479585901,5.50187263,1817.6,1817.4,4.595]
[1746479586794,5.50163862,1817.7,1817.4,10.09732423]
[1746479587001,5.50163862,1817.7,1817.4,11.73265374]
[1746479588903,6.25808461,1818.2,1817.9,0.7981]
[1746479589090,5.4997718,1818.3,1818.0,4.595]
[1746479589495,5.52899783,1818.3,1818.0,4.595]
[1746479590495,6.25041321,1818.4,1818.0,10.09533056]
[1746479590793,6.27963924,1818.4,1818.0,10.09533056]
[1746479591003,6.27963924,1818.4,1818.0,15.59569085]
[1746479591206,6.279577,1818.4,1818.1,5.50022849]
[1746479591394,6.279577,1818.4,1818.0,11.73470965]
[1746479592326,5.49976273,1818.3,1818.0,6.23437909]
[1746479592538,0.02922603,1818.2,1818.0,4.595]
[1746479593033,6.27974617,1818.4,1818.0,4.595]
[1746479593335,5.49984829,1818.3,1818.0,4.595]
[1746479593533,0.02922603,1818.2,1818.0,4.595]
[1746479597430,5.52907432,1818.3,1818.1,0.7658]
[1746479597732,6.63193025,1818.3,1818.1,0.7658]
[1746479598133,6.63193025,1818.3,1818.0,4.595]
[1746479599342,12.94000365,1818.3,1818.0,4.595]
[1746479599497,5.49995291,1818.2,1818.0,4.595]
[1746479600017,7.44009747,1818.3,1818.0,4.595]
[1746479600743,6.63189747,1818.3,1818.0,4.595]
[1746479604331,5.50001027,1818.2,1818.0,4.595]
[1746479604698,5.5292363,1818.2,1818.0,4.595]
[1746479605231,0.02922603,1818.2,1818.0,4.595]
[1746479607338,5.52934544,1818.2,1818.0,4.595]
[1746479609033,5.52934544,1818.2,1817.9,6.26653529]
[1746479609223,0.02922603,1818.2,1818.1,4.594]
[1746479613327,5.52917103,1818.2,1818.1,4.594]
[1746479614450,0.02922603,1818.2,1818.1,4.594]
[1746479617552,5.4998525,1818.3,1818.1,4.594]
[1746479617857,5.52907853,1818.3,1818.1,4.594]
[1746479618772,5.52907853,1818.3,1818.2,4.591]
[1746479619064,7.02656738,1818.3,1818.2,4.591]
[1746479621625,7.0263574,1818.3,1818.2,4.591]
[1746479621831,5.49921888,1818.5,1818.2,4.591]
[1746479622069,5.52869062,1818.4,1818.2,4.591]
[1746479625181,5.52869062,1818.4,1818.0,0.8197]
[1746479625372,5.52866026,1818.4,1818.1,4.591]
[1746479625568,5.52866026,1818.4,1818.1,5.13207]
[1746479626248,16.52900533,1818.6,1818.2,5.49982719]
[1746479626482,15.7388313,1818.6,1818.2,6.31952719]
[1746479626845,5.49856289,1818.7,1818.3,5.4995757]
[1746479627048,0.02922603,1818.6,1818.3,5.4995757]
[1746479627251,0.02922603,1818.7,1818.4,5.49923614]
[1746479627451,5.49873529,1818.6,1818.5,4.591]
[1746479628208,5.49983726,1818.3,1818.0,0.8197]
[1746479628352,5.49946282,1818.4,1818.1,4.591]
[1746479628994,9.47597514,1818.5,1818.1,10.09117309]
[1746479629151,9.50520117,1818.5,1818.1,10.09117309]
[1746479629496,9.50524616,1818.5,1818.1,10.09117309]
[1746479630193,5.49945332,1818.4,1818.1,10.09123231]
[1746479630393,9.47600955,1818.5,1818.1,10.09123231]
[1746479630598,9.50523558,1818.5,1818.1,10.09123231]
[1746479631257,9.47600955,1818.5,1818.1,10.09123231]
[1746479631460,9.50523558,1818.5,1818.1,10.09123231]
[1746479631652,9.50523558,1818.5,1818.1,5.50023231]
[1746479631853,9.50523558,1818.5,1818.2,4.591]
[1746479632405,8.71513558,1818.5,1818.3,4.591]
[1746479632580,6.26483076,1818.6,1818.3,4.591]
[1746479632771,0.02922603,1818.6,1818.4,4.591]